Cogmind - Beta 17 @@@ ROGUE MODE // 2026.07.05 @ 18:49:02 Player: Robbedoes2000 Result: Destroyed by Y-45 Defender with Beam Rifle Performance ------------- Evolutions (1) 500 Regions Visited (2) 400 Robots Destroyed (6) 30 Value Destroyed (111) 111 Prototype IDs (1) 20 Alien Tech Used (0) 0 Bonus (0) 0 TOTAL SCORE: 1061 Bonus ------- None Cogmind --------- Core Integrity 0/400 Matter 37/300 Energy 100/100 System Corruption 3% Temperature Cool (18) Movement Core (100) Ox1 Location -9/Materials Parts ------- > --- POWER (1) -------- (None) > --- PROPULSION (2) --- (None) > --- UTILITY (4) ------ Small Storage Unit Salvage Targeting Computer > --- WEAPON (2) ------- (None) > --- INVENTORY (8) ---- Ion Engine Compact Wheel Heat Sink Weight Redist. System Autogun Autogun Mining Claw Peak State ------------ > --- POWER ------------ Improved Ion Engine > --- PROPULSION ------- Wheel Wheel > --- UTILITY ---------- Small Storage Unit Sensor Array Improved Terrain Scanner Salvage Targeting Computer > --- WEAPON ----------- Advanced Beam Rifle Advanced Beam Rifle > --- INVENTORY -------- Ion Engine Compact Wheel Heat Sink Weight Redist. System Autogun Autogun Autogun Mining Claw [Rating: 20] Favorites ----------- Power Ion Engine Engine Ion Engine Propulsion Wheel Wheel Wheel Utility Small Storage Unit Device Improved Terrain Scanner Storage Small Storage Unit Processor Salvage Targeting Computer Protection Hardened Light Armor Plating Weapon Mining Claw Energy Gun Small Laser Ballistic Gun Autogun Impact Weapon Flail Slashing Weapon Mining Claw Build | -11 -10 -9 ------- Run | Yrd Mat Mat Slots Evolved 2 | . . 2 Power . | . . . Propulsion . | . . . Utility 2 | . . 2 Weapon . | . . . Parts Attached 26 | 7 6 13 Power 2 | 1 . 1 Engine 2 | 1 . 1 Core . | . . . Reactor . | . . . Propulsion 3 | 2 1 . Treads . | . . . Leg . | . . . Wheel 3 | 2 1 . Hover . | . . . Flight . | . . . Utility 12 | 2 1 9 Device 5 | 1 1 3 Storage 5 | 1 . 4 Processor 1 | . . 1 Hackware . | . . . Protection 1 | . . 1 Artifact . | . . . Weapon 9 | 2 4 3 Energy Gun 4 | 2 . 2 Energy Cannon . | . . . Ballistic Gun 3 | . 2 1 Ballistic Cannon . | . . . Launcher . | . . . Special Weapon . | . . . Impact Weapon 1 | . 1 . Slashing Weapon 1 | . 1 . Piercing Weapon . | . . . Special Melee Weapon . | . . . Unidentified Prototypes 1 | . . 1 Parts Lost 8 | . . 8 Power 1 | . . 1 Propulsion 2 | . . 2 Utility 3 | . . 3 Weapon 2 | . . 2 Highest Loss Streak 8 | . . 8 To Critical Strikes . | . . . Average Backups 7 | 3 7 7 Power 1 | . 1 1 Propulsion 1 | 1 2 1 Utility 1 | . . 1 Weapon 3 | 1 3 3 Tool/Special . | . . . Unused Backups 9 | . 4 5 Power 2 | . 1 1 Propulsion 3 | . 2 1 Utility 1 | . . 1 Weapon 3 | . 1 2 Tool/Special . | . . . Average Slot Usage (%) 91 | . 99 87 Engine 11 | . 14 9 Wheel 21 | . 28 17 Device 19 | . 14 22 Storage 12 | . 14 11 Processor 3 | . . 5 Energy Gun 3 | . 3 3 Ballistic Gun 11 | . 16 9 Slashing Weapon 7 | . 7 8 Peak Build Rating 20 | 9 12 20 Average Rating 11 | 4 10 13 On Entrance 6 | . 9 9 Avg Prop Armor Cover (%) . | . . . Naked Turns . | . . . Heaviest Build 20 | 13 17 20 Greatest Support 26 | 26 26 20 Greatest Overweight (x) 5 | 1 . 5 Average Overweight (x) . | . . . Largest Inventory Capacity 15 | 8 8 15 Average Capacity 7 | 7 8 8 Most Carried 8 | 7 8 8 Average Carried 7 | 4 7 7 Final Capacity 8 | 8 8 8 Final Carried 8 | 7 8 7 Class Distribution -------------------- 100% | Mutant Dominant Class ---------------- Mutant | -10/Materials Mutant | -9/Materials Resources | -11 -10 -9 ----------- Run | Yrd Mat Mat Matter Collected 315 | 270 33 12 Remotely . | . . . Salvage Created 213 | 105 33 75 Parts 13 | 5 3 5 Haulers Intercepted . | . . . Recyclers Shooed . | . . . Parts Field Recycled . | . . . Retrieved Matter . | . . . Parts Self-Destructed . | . . . Prevented . | . . . Parts Restored . | . . . Kills | -11 -10 -9 ------- Run | Yrd Mat Mat Combat Hostiles Destroyed 4 | . 1 3 Guns 4 | . 1 3 Classes Destroyed 4 | 2 1 1 Tunneler 1 | 1 . . Recycler 1 | 1 . . Swarmer 2 | . . 2 Grunt 2 | . 1 1 Best Kill Streak 3 | 2 1 3 Combat Bots Only 3 | . 1 3 Max Kills in Single Turn 1 | 1 1 1 Gunslinging . | . . . Exploded . | . . . Melee . | . . . Uniques/NPCs Destroyed . | . . . Combat | -11 -10 -9 -------- Run | Yrd Mat Mat Hostile Shots Fired 130 | . 5 125 Missed 40 | . 1 39 Hits 90 | . 4 86 Melee 8 | . . 8 Projectile 82 | . 4 78 Critical Strikes 2 | . . 2 Damage Taken 1098 | . 42 1056 Core 413 | . 10 403 Absorbed by Shields . | . . . Core Remaining (%) 98 | 100 96 . Volleys Fired 14 | 3 5 6 Largest 2 | 2 2 2 Hottest 122 | 80 46 122 Shots Fired 23 | 6 9 8 Gun 23 | 6 9 8 Cannon . | . . . Launcher . | . . . Special . | . . . Kinetic 13 | . 9 4 Thermal 10 | 6 . 4 Explosive . | . . . Electromagnetic . | . . . Robot Hit Streak 5 | 2 5 3 Robot Miss Streak 3 | 2 2 3 Penetration Max . | . . . Secondary Targets 1 | . . 1 Max Gunslinging Chain 1 | . . 1 Shots Hit Robots 15 | 4 6 5 Core Hits 8 | 3 2 3 Critical Kills . | . . . Critical Parts Destroyed . | . . . Critical Strikes . | . . . Melee Attacks 9 | . 3 6 Impact . | . . . Slashing 9 | . 3 6 Piercing . | . . . Sneak Attacks . | . . . Combat Hostiles . | . . . Follow-up Attacks . | . . . Damage Inflicted 220 | 47 90 83 Guns 218 | 47 90 81 Cannons . | . . . Explosions . | . . . Melee . | . . . Ramming 2 | . . 2 Kinetic 131 | . 90 41 Thermal 87 | 47 . 40 Explosive . | . . . Electromagnetic . | . . . Impact . | . . . Slashing . | . . . Piercing . | . . . Highest Corruption 3 | . . 3 Average Corruption 3 | . . 3 Corruption Purged . | . . . Corruption Blocked . | . . . Overload Shots . | . . . Overflow Damage . | . . . Projectiles . | . . . Explosions . | . . . Melee . | . . . Knockbacks . | . . . Impact . | . . . Kinetic . | . . . Secondary . | . . . Self-Inflicted Damage 1 | . . 1 Shots . | . . . Rammed 1 | . . 1 Targets Rammed 1 | . . 1 Kicked . | . . . Crushed . | . . . Highest Temperature 114 | 36 24 114 Average Temperature 30 | 17 12 59 Received Heat Transfer 216 | . 24 192 Siege Activations . | . . . Martial Activations . | . . . Shielding Activations . | . . . Robots Disrupted . | . . . Combat Hostiles . | . . . Robots Corrupted . | . . . Combat Hostiles . | . . . Parts Fried . | . . . Impact Corruptions . | . . . Robots Melted . | . . . Combat Hostiles . | . . . Parts Melted 1 | 1 . . Heat Transferred 174 | 100 . 74 Parts Sabotaged . | . . . Parts Stolen . | . . . Parts Stripped . | . . . Power Chain Reactions . | . . . Alert | -11 -10 -9 ------- Run | Yrd Mat Mat Maximum Alert Level . | . . . Low Security (%) 100 | 100 100 100 Level 1 . | . . . Level 2 . | . . . Level 3 . | . . . Level 4 . | . . . Level 5 . | . . . High Security . | . . . Max Security . | . . . Peak Influence 55 | 5 30 55 Initial . | . . . Average 5 | . 7 5 Influence Increases 162 | 10 47 105 Destroy 0b10 Robot/C 80 | . 20 60 Destroy 0b10 Robot/NC 10 | 10 . . Destroy Leader 10 | . 10 . Trap Triggered on 0b10 10 | . . 10 Successful Hack 2 | . . 2 Disable Machine 15 | . 15 . Destroy Structure 5 | . 2 3 Partial Spotted 15 | . . 15 Lose Combat Pursuer 15 | . . 15 Influence Decreases 162 | 10 46 106 Entered New Map 1 | . . 1 Time Decay 111 | 10 46 55 Lost Part 50 | . . 50 Squads Dispatched 5 | . 1 4 Investigation 1 | . . 1 Extermination . | . . . Reinforcement 4 | . 1 3 Assault . | . . . Garrison . | . . . Intercept . | . . . Searches Triggered . | . . . Construction Impeded . | . . . Haulers Reinforced . | . . . Active Scanning Responses . | . . . Cargo Convoy Interrupts . | . . . Stealth | -11 -10 -9 --------- Run | Yrd Mat Mat Distress Signals 2 | . . 2 Communications Jammed . | . . . Distress Signals . | . . . Times Spotted 20 | . 3 17 Peak Tracking Total 10 | . 1 10 Tactical Retreats 1 | . . 1 Traps | -11 -10 -9 ------- Run | Yrd Mat Mat Traps Triggered 2 | . . 2 Indirectly . | . . . Trap Hack Attempts . | . . . Triggered . | . . . Disarmed . | . . . Reprogrammed 1 | . . 1 Reused 1 | . . 1 Traps Extracted . | . . . Installed . | . . . Triggered 1 | . . 1 Machines | -11 -10 -9 ---------- Run | Yrd Mat Mat Machines Disabled 1 | . 1 . Max in Single Turn 1 | . 1 . Machines Repaired . | . . . Machines Dismantled . | . . . Machines Sabotaged . | . . . Overloaded Fab Kills . | . . . Hacking | -11 -10 -9 --------- Run | Yrd Mat Mat Machines Accessed 4 | . 1 3 Terminals 2 | . 1 1 Fabricators . | . . . Repair Stations 1 | . . 1 Recycling Units . | . . . Scanalyzers 1 | . . 1 Garrison Access . | . . . Total Hacks 12 | . 4 8 Successful 6 | . 1 5 Failed 6 | . 3 3 Catastrophic 3 | . 2 1 Database Lockouts . | . . . Manual . | . . . Terminals 8 | . 4 4 Fabricators . | . . . Repair Stations 2 | . . 2 Recycling Units . | . . . Scanalyzers 2 | . . 2 Garrison Access . | . . . Terminal Hacks 3 | . 1 2 Record 1 | . . 1 Alert Level 1 | . 1 . Reprogram Traps 1 | . . 1 Fabricator Hacks . | . . . Repair Station Hacks 1 | . . 1 Scan Component 1 | . . 1 Recycling Unit Hacks . | . . . Scanalyzer 2 | . . 2 Insert Component 1 | . . 1 Analyze 1 | . . 1 Garrison Access Hacks . | . . . Unauthorized Hacks . | . . . Terminals . | . . . Fabricators . | . . . Repair Stations . | . . . Recycling Units . | . . . Scanalyzers . | . . . Garrison Access . | . . . Data Cores Recovered . | . . . Used . | . . . Hacking Detections 4 | . 1 3 Full Trace Events . | . . . Feedback Events . | . . . Feedback Blocked . | . . . Robot Schematics Acquired . | . . . Robots Built . | . . . Authchips . | . . . Time . | . . . Total Robot Build Rating . | . . . Part Schematics Acquired 1 | . . 1 Parts Built . | . . . Authchips . | . . . Time . | . . . Total Part Build Rating . | . . . Part Studies Acquired . | . . . Parts Repaired . | . . . Time . | . . . Parts Recycled . | . . . Recycled Matter . | . . . Retrieved Matter . | . . . Retrieved Components . | . . . Parts Scanalyzed 1 | . . 1 Part Schematics Acquired 1 | . . 1 Parts Damaged . | . . . Bothacking | -11 -10 -9 ------------ Run | Yrd Mat Mat Used RIF Installer . | . . . Robots Hacked . | . . . Non-combat . | . . . Combat . | . . . Robot Hacks Applied . | . . . Relay Couplers Released . | . . . Fabnet Peak Effective % . | . . . Robots Rewired . | . . . Allies Hacked . | . . . Hacks Repelled . | . . . Allies | -11 -10 -9 -------- Run | Yrd Mat Mat Total Allies . | . . . Largest Group . | . . . Highest-Rated Group . | . . . Highest-Rated Ally . | . . . Total Orders . | . . . Ally Attacks . | . . . Total Damage . | . . . Kills . | . . . Allies Corrupted . | . . . Allies Melted . | . . . Intel | -11 -10 -9 ------- Run | Yrd Mat Mat Active Infowar (turns) 439 | 5 170 264 Sensors 309 | . 47 262 Terrain 375 | 5 123 247 Robot Analysis Total . | . . . Derelict Logs Recovered . | . . . Drone Launches . | . . . Drone Recoveries . | . . . Exploration | -11 -10 -9 ------------- Run | Yrd Mat Mat Turns Passed 572 | 85 172 315 Spaces Moved 403 | 64 111 228 Core 34 | 17 . 17 Treads . | . . . Legs . | . . . Wheels 369 | 47 111 211 Hover . | . . . Flight . | . . . Fastest Speed 50 | 50 80 80 Average Speed 87 | 84 86 89 Slowest Speed 300 | 100 90 300 Overloaded Moves . | . . . Propulsion Burnouts . | . . . Robots Hopped . | . . . Potential Cave-ins . | . . . Cave-ins Triggered . | . . . Exploration Rate (%) 19 | 4 24 29 Regions Visited 2 Branch Regions . Pre-discovered Areas . | . . . Known Exits Taken . | . . . Unknown Exits Taken 2 | 1 1 . Scrap Searched . | . . . Spaces Dug 5 | . 2 3 Terrain Destroyed 5 | . 2 3 Melee 5 | . 2 3 Projectile . | . . . AOE . | . . . Terrain Rammed . | . . . Walls Destroyed . | . . . Machines Disabled . | . . . Actions | -11 -10 -9 --------- Run | Yrd Mat Mat Total 581 | 89 173 319 Wait 68 | 2 29 37 Move 401 | 63 110 228 Hop . | . . . Pick Up 28 | 14 7 7 Fast Attach 14 | . 3 11 Attach 14 | 7 . 7 Detach 1 | . . 1 Swap 9 | . 7 2 Drop 22 | . 9 13 Fire 14 | 3 5 6 Melee 9 | . 3 6 Ram 1 | . . 1 Kick . | . . . Crush . | . . . Escape Stasis . | . . . Rewire . | . . . Trap . | . . . Miscellaneous . | . . . Route ------- -11/Scrapyard -10/Materials -9/Materials History --------- Turn | Location | Event 2 | -11/Scrapyard | Met Revision 17 10 | -11/Scrapyard | Discovered new exit (range 16) 86 | -11/Scrapyard | Entered Materials 255 | -10/Materials | Discovered new exit (range 4) 258 | -10/Materials | Entered another Materials area 258 | -9/Materials | Evolved 2 slots: Utility x2 328 | -9/Materials | Build established: Mutant 561 | -9/Materials | Core integrity fell below 50% 571 | -9/Materials | Core integrity fell below 20% 573 | -9/Materials | Destroyed by Y-45 Defender with Beam Rifle Last Messages --------------- 00527_ Acquired Cryofiber Web. 00531_ Imp. Ion Engine destroyed. 00531_ Slammed into B-36 Bruiser. 00531_ Destabilizing: System interference. 00531_ Adv. Beam Rifle temporarily disabled. 00535_ Knocked back. 00536_ K-01 Serf collects debris. 00537_ Com. Matter Pod destroyed. 00537_ S-10 Pest destroyed. 00539_ Acquired 12 matter. 00540_ Critical hit (Burn: +37). 00540_ K-01 Serf collects debris. 00541_ Adv. Beam Rifle destroyed. 00543_ S-10 Pest destroyed. 00544_ K-01 Serf collects debris. 00561_ Adv. Beam Rifle destroyed. 00563_ Cryofiber Web destroyed. 00563_ System corrupted by crushing effect (+3). 00564_ K-01 Serf collects debris. 00566_ Knocked back. Map ----- +----------------------------------------------------+ | ?????????????????????????????????????????????????? | | ?????????????????????????????????????????????????? | | ?????????????????????????????????????????????????? | | ?????????????????????????????????????????????????? | | ?????????????????????????????????????????????????? | | ?????????????????????????????????????????????????? | | ?????????????????????????????????????????????????? | | ?????????????????????????????????????????????????? | | ?????????????????????????????????????????????????? | | ?????????????????????????????????????????????????? | | ?????????????????????????????????????????????????? | | ?????????????????????????????????????????????????? | | ?????????????????????????????????????????????????? | | ?????????????????????????????????????????????????? | | ?????????????????????????????????????????????????? | | ?????????????????????????????????????????????????? | | ?????????????????????????????????????????????????? | | ?????????????????????????????????????????????????? | | ?????????????????????????????????????????????????? | | ????????????????????????#######??????????????????? | | ????????????????????????# #??????????????????? | | ????????????????????????# #??????????????????? | | ????????????????????????# #??????????????????? | | ????????????????????????# #??????????????????? | | ????????????????????????# #??????????????????? | | ????????????????????????#@ #??????????????????? | | ????????????????????????# ##?????????????????? | | ????????????????????????#bgg #??????????????????? | | ????????????????????????# Y #??????????????????? | | ?????????#?????????????## #??????????????????? | | ????????????????????##### Y #??????????????????? | | ????????????????????#!![# #??????????????????? | | ????????????????????#! !#+#+####"###+##??????????? | | ???????????????????##!! = * = %[% ????????? | | ????????????????????#! = =% = = ? ?????? | | ????????????????????#[ [ * ? ?????? | | ????????????????????#[ [ ####+#######?? ?????? | | ????????????????????##### #???? ??????? ?????? | | ??????????????#????????## ##?? ?? #????? ?????? | | ????????????????????????# +?????????#?? ?????? | | ????????????? ??????????# ## "?????????? ?????? | | ????????#????? ?????????### #??""????????? #????? | | ???????????????? ?????????# #?? ????????? ????? | | ??????????????? ????? ????# #????????????? ????? | | ???????????????????? ?????#+######???????? ????? | | ??????????????????????????#%""""" ######/#????? | | ???????????????##+#########[""T"" # #???#? | | ?????????????#?# #= # = #???#? | | ???????????????# / """ """ # ##?##? | | ???????? # """ """ # "" ###### | +----------------------------------------------------+ Best States ------------- Heat Dissipation 38 Energy Generation 12 Energy Capacity 265 Matter Stores 300 Matter Capacity 450 Sight Range 16 Robot Scan Range 14 Terrain Scan Range 16 Terrain Scan Density 10 Base Temperature (-) 100 Armor Coverage 150 Evasion (%) 50 Salvage Targeting 1 Item Schematics ----------------- Autogun | -9/Materials | Scanalyzed Robot Schematics ------------------ None Fabricated ------------ Nothing Repaired ---------- Nothing Studied --------- None Alien Tech Used ----------------- None Achievements -------------- None Challenges ------------ None Game ------ Seed AerolevReflectiveSpecial Manual? 0 Play Time 00:15:58 Cumulative 1.3 hours Start 2026.07.05 @ 18:33:44 End 2026.07.05 @ 18:49:02 Sessions 1 Manual Loads 0 Difficulty Rogue Special Mode None Game No. 3 Rogue 3 Adventurer 0 Explorer 0 Win Type - Total 0 Types 0/0/0/0/0/0/0/0/0/0 Lore% 4 Gallery% 8 Achievement% 14 Wizard Run 0 Options --------- Layout 0 ASCII 0 Keyboard 0 Movement Mouse Keybinds 0 Fullscreen 2 Font 24/Smallcaps Map View 76x50 Zoom Use 0% Tactical HUD 1 Map Filters NONE Filters NONE Steam 1 RUN: 307f0789-5125-4e94-a2d3-32c81e7a589d